Cogmind - Beta 16 @@@ ROGUE MODE // 2026.01.11 @ 17:40:21 Player: OctarineSorcerer Result: Destroyed by S-27 Virus with Autogun Performance ------------- Evolutions (5) 2500 Regions Visited (7) 1400 Robots Destroyed (101) 505 Value Destroyed (3559) 3559 Prototype IDs (14) 280 Alien Tech Used (0) 0 Bonus (134) 134 TOTAL SCORE: 8378 Bonus ------- High Alert Combat Kills 134 Cogmind --------- Core Integrity 0/1000 Matter 211/300 Energy 100/100 System Corruption 5% Temperature Cool (9) Movement Core (50) Location -5/Upper Caves Parts ------- > --- POWER (2) -------- (None) > --- PROPULSION (5) --- (None) > --- UTILITY (6) ------ (None) > --- WEAPON (4) ------- (None) > --- INVENTORY (5) ---- Advanced Weight Redist. System Peak State ------------ > --- POWER ------------ Cooled Deuterium Engine Light Angular Momentum Engine > --- PROPULSION ------- Armored Huge Wheel Armored Huge Wheel Gravmag System > --- UTILITY ---------- Large Storage Unit Improved Melee Analysis Suite Medium Reactive Plating Hacking Suite > --- WEAPON ----------- Heavy Flail Impact Mace Impact Mace Impact Mace > --- INVENTORY -------- Light Deuterium Engine Angular Momentum Engine Gravmag System Nuclear Pulse Thruster Advanced Weight Redist. System Advanced Sensor Array Experimental Targeting Computer Experimental Targeting Computer Improved Weapon Shielding Reactive Plating Hacking Suite System Restoration Module Improved Spread Laser Autogun Minigun [Rating: 66] Favorites ----------- Power Cooled Deuterium Engine Engine Cooled Deuterium Engine Power Core Nuclear Core Propulsion Armored Huge Wheel Wheel Armored Huge Wheel Hover Unit Gravmag System Flight Unit Cesium-ion Thruster Utility Large Storage Unit Device Advanced Weight Redist. System Storage Large Storage Unit Processor Improved Melee Analysis Suite Hackware Hacking Suite Protection Medium Reactive Plating Weapon Impact Mace Energy Gun Advanced Beam Rifle Energy Cannon Heavy Phase Cannon Ballistic Gun Assault Rifle Ballistic Cannon Advanced Assault Cannon Launcher Rocket Launcher Impact Weapon Impact Mace Build | -11 -10 -9 -8 -7 -6 -5 -5 ------- Run | Yrd Mat Mat Mat Fac Fac Fac Upp Slots Evolved 10 | . . 2 2 2 2 2 . Power 1 | . . . . . 1 . . Propulsion 3 | . . . 2 . 1 . . Utility 4 | . . 1 . 1 . 2 . Weapon 2 | . . 1 . 1 . . . Parts Attached 71 | 7 3 5 12 20 18 3 3 Power 11 | 1 . 1 2 2 4 1 . Engine 8 | 1 . . 1 2 4 . . Core 3 | . . 1 1 . . 1 . Reactor . | . . . . . . . . Propulsion 22 | 3 2 . 4 5 8 . . Treads . | . . . . . . . . Leg . | . . . . . . . . Wheel 12 | 3 2 . 4 3 . . . Hover 4 | . . . . 2 2 . . Flight 6 | . . . . . 6 . . Utility 20 | 1 1 2 3 5 6 1 1 Device 6 | . . . . . 4 1 1 Storage 4 | 1 . 2 1 . . . . Processor 2 | . . . . 1 1 . . Hackware 3 | . . . 1 2 . . . Protection 5 | . 1 . 1 2 1 . . Artifact . | . . . . . . . . Weapon 18 | 2 . 2 3 8 . 1 2 Energy Gun 2 | . . . . 2 . . . Energy Cannon 1 | . . . . . . 1 . Ballistic Gun 5 | 2 . 1 . 1 . . 1 Ballistic Cannon 1 | . . . . . . . 1 Launcher 2 | . . . 1 1 . . . Special Weapon . | . . . . . . . . Impact Weapon 7 | . . 1 2 4 . . . Slashing Weapon . | . . . . . . . . Piercing Weapon . | . . . . . . . . Special Melee Weapon . | . . . . . . . . Unidentified Prototypes 10 | . . . 1 6 2 1 . Parts Lost 38 | . . . 8 10 5 12 3 Power 4 | . . . 1 1 1 1 . Propulsion 14 | . . . 4 2 2 6 . Utility 11 | . . . 1 4 . 5 1 Weapon 9 | . . . 2 3 2 . 2 Highest Loss Streak 13 | . . . 4 4 2 13 3 To Critical Strikes . | . . . . . . . . Average Backups 10 | 3 6 8 8 12 12 2 1 Power 1 | 1 2 1 . 3 1 . . Propulsion 1 | . 2 2 1 1 2 . . Utility 3 | . . . 1 3 6 2 1 Weapon 3 | . 1 3 4 4 2 . . Tool/Special . | . . . . . . . . Unused Backups 22 | . . 2 3 7 10 . . Power 4 | . . 2 . 2 . . . Propulsion 4 | . . . 2 2 . . . Utility 10 | . . . . 1 9 . . Weapon 4 | . . . 1 2 1 . . Tool/Special . | . . . . . . . . Average Slot Usage (%) 78 | . 96 91 79 81 80 34 5 Engine 5 | . 14 1 . 6 9 5 . Core 2 | . . 9 7 . . . . Wheel 15 | . 28 22 22 14 10 . . Hover 1 | . . . . . 4 . . Flight 1 | . . . . . 4 11 . Device 1 | . . . . . 4 9 3 Storage 8 | . 14 20 10 7 5 . . Processor 2 | . . . . 2 6 3 . Hackware 6 | . . . 8 11 5 . . Protection 5 | . 10 8 5 6 3 2 . Ballistic Gun 4 | . 28 19 3 2 . . 1 Launcher 2 | . . . 4 3 . . . Impact Weapon 17 | . . 9 17 20 22 . . Peak Build Rating 66 | 6 9 19 37 55 66 55 6 Average Rating 40 | 3 8 17 30 49 58 24 3 On Entrance 21 | . 6 9 18 37 55 48 1 Avg Prop Armor Cover (%) 3 | . . . . 8 3 . . Naked Turns 47 | . . . . . . 33 14 Heaviest Build 72 | 13 16 24 44 63 72 36 9 Greatest Support 65 | 20 24 24 56 56 65 43 3 Greatest Overweight (x) 14 | . . . 1 14 2 1 2 Average Overweight (x) . | . . . . . . . . Largest Inventory Capacity 15 | 8 8 10 15 15 15 5 5 Average Capacity 12 | 5 8 8 11 15 13 5 5 Most Carried 15 | 5 7 10 15 15 15 5 3 Average Carried 10 | 3 6 8 9 12 13 2 1 Final Capacity 15 | 8 8 10 15 15 5 5 5 Final Carried 15 | 3 7 10 15 13 5 3 1 Class Distribution -------------------- 43% | Mutant 35% | Gladiator 17% | Hacker-Mutant 3% | Sprinter Dominant Class ---------------- Mutant | -10/Materials Mutant | -9/Materials Mutant | -8/Materials Hacker-Mutant | -7/Factory Gladiator | -6/Factory Mutant | -5/Factory Mutant | -5/Upper Caves Resources | -11 -10 -9 -8 -7 -6 -5 -5 ----------- Run | Yrd Mat Mat Mat Fac Fac Fac Upp Matter Collected 1246 | 242 144 173 232 315 116 24 . Remotely 24 | . . . . . . 24 . Salvage Created 4045 | 28 157 173 1643 644 1382 . 18 Parts 114 | 3 5 7 36 31 30 . 2 Haulers Intercepted 10 | . . . 5 2 3 . . Recyclers Shooed . | . . . . . . . . Parts Field Recycled . | . . . . . . . . Retrieved Matter . | . . . . . . . . Parts Self-Destructed 1 | . . . . . . . 1 Prevented . | . . . . . . . . Parts Restored . | . . . . . . . . Kills | -11 -10 -9 -8 -7 -6 -5 -5 ------- Run | Yrd Mat Mat Mat Fac Fac Fac Upp Combat Hostiles Destroyed 72 | . 3 3 28 14 23 . 1 Melee 32 | . . . 12 8 12 . . Guns 7 | . 3 2 1 1 . . . Cannons 1 | . . . . . . . 1 AOE 3 | . . . 2 1 . . . Classes Destroyed 14 | 1 2 1 5 3 2 . . Worker 6 | . . . 4 1 1 . . Builder 3 | . . . 1 1 1 . . Tunneler 3 | 2 . . 1 . . . . Hauler 10 | . . . 5 2 3 . . Operator 1 | . . . 1 . . . . Watcher 6 | . 1 1 2 . 2 . . Swarmer 10 | . . . . 3 6 . 1 Cutter 1 | . . . . . 1 . . Grunt 41 | . 3 . 24 2 12 . . Brawler 1 | . . . . . 1 . . Duelist 2 | . . . 1 . 1 . . Sentry 8 | . . 3 3 2 . . . Hunter 3 | . . . . 3 . . . Programmer 6 | . . . . 4 2 . . Best Kill Streak 11 | 1 3 2 11 3 5 . 1 Combat Bots Only 12 | . 2 1 12 3 4 . 1 Max Kills in Single Turn 2 | 1 2 1 2 2 1 . 1 Gunslinging . | . . . . . . . . Exploded 1 | . . . 1 1 . . . Melee 1 | . . . 1 1 1 . . Uniques/NPCs Destroyed . | . . . . . . . . Combat | -11 -10 -9 -8 -7 -6 -5 -5 -------- Run | Yrd Mat Mat Mat Fac Fac Fac Upp Hostile Shots Fired 662 | . 19 13 108 186 168 133 35 Missed 236 | . 5 1 25 67 68 63 7 Hits 426 | . 14 12 83 119 100 70 28 Melee 4 | . . . . . 4 . . Projectile 422 | . 14 12 83 119 96 70 28 Critical Strikes 15 | . . 1 7 3 3 . 1 Part Disruptions 1 | . . . . 1 . . . Damage Taken 6901 | . 151 173 1471 1925 1469 1200 512 Core 1742 | . 45 14 196 304 168 789 226 Absorbed by Shields . | . . . . . . . . Ignored by Resistances 4 | . . . . 4 . . . Regen/Repaired (Parts) 40 | . . . 40 . . . . Core Remaining (%) 79 | 100 82 96 64 56 80 . . Volleys Fired 65 | 14 18 4 11 13 . . 5 Largest 2 | 1 2 2 2 1 . . 2 Hottest 63 | 20 40 43 43 61 . . 63 Shots Fired 97 | 14 36 8 19 13 . . 7 Gun 86 | 14 36 8 16 8 . . 4 Cannon 3 | . . . . . . . 3 Launcher 8 | . . . 3 5 . . . Special . | . . . . . . . . Kinetic 87 | 14 36 8 16 6 . . 7 Thermal 2 | . . . . 2 . . . Explosive 8 | . . . 3 5 . . . Electromagnetic . | . . . . . . . . Robot Hit Streak 12 | 12 6 4 5 6 . . 3 Robot Miss Streak 4 | 1 4 2 3 3 . . 2 Penetration Max . | . . . . . . . . Secondary Targets . | . . . . . . . . Shots Hit Robots 225 | 13 21 12 82 36 57 . 4 Core Hits 72 | 4 8 4 23 18 10 3 2 Critical Kills 6 | . . 1 1 2 2 . . Critical Parts Destroyed 38 | . . 2 15 6 15 . . Critical Strikes 44 | . . 3 16 8 17 . . Destroy 1 | . . 1 . . . . . Smash 43 | . . 2 16 8 17 . . Melee Attacks 249 | . . 7 111 46 85 . . Impact 249 | . . 7 111 46 85 . . Slashing . | . . . . . . . . Piercing . | . . . . . . . . Sneak Attacks 21 | . . 1 10 3 7 . . Combat Hostiles . | . . . . . . . . Follow-up Attacks 36 | . . . 11 8 17 . . Damage Inflicted 10277 | 106 221 451 4118 1848 3382 55 96 Guns 674 | 106 221 70 142 101 . . 34 Cannons 62 | . . . . . . . 62 Explosions 491 | . . . 306 185 . . . Melee 8995 | . . 381 3670 1562 3382 . . Ramming 55 | . . . . . . 55 . Kinetic 691 | 106 221 70 142 56 . . 96 Thermal 45 | . . . . 45 . . . Explosive 491 | . . . 306 185 . . . Electromagnetic . | . . . . . . . . Impact 8995 | . . 381 3670 1562 3382 . . Slashing . | . . . . . . . . Piercing . | . . . . . . . . Highest Corruption 11 | . . . . 11 1 6 6 Average Corruption 2 | . . . . 3 1 1 5 Corruption Purged 1 | . . . . . . . 1 Corruption Blocked . | . . . . . . . . Effects 25 | . . . . 16 6 1 2 Message Errors 10 | . . . . 5 4 . 1 Matter Fused 7 | . . . . 5 . 1 1 Energy Discharges 2 | . . . . . 2 . . Parts Fused 1 | . . . . 1 . . . Data Loss (minor) 2 | . . . . 2 . . . Data Loss (major) 3 | . . . . 3 . . . Overload Shots . | . . . . . . . . Overflow Damage 3170 | . . 170 1375 374 1251 . . Projectiles 28 | . . . 28 . . . . Explosions . | . . . . . . . . Melee 3142 | . . 170 1347 374 1251 . . Knockbacks 47 | . . . 26 4 16 1 . Impact 43 | . . . 22 4 16 1 . Kinetic . | . . . . . . . . Secondary 4 | . . . 4 . . . . Self-Inflicted Damage 45 | . . . 22 . . 23 . Shots 1 | . . . 1 . . . . Rammed 25 | . . . . . . 25 . Targets Rammed 25 | . . . . . . 25 . Kicked . | . . . . . . . . Crushed . | . . . . . . . . Highest Temperature 275 | . 24 9 10 275 264 21 . Average Temperature 75 | . 9 3 6 100 144 8 . Received Heat Transfer 1533 | . 84 81 828 150 246 9 135 Effects 3 | . . . . . 3 . . Interference 3 | . . . . . 3 . . Siege Activations . | . . . . . . . . Martial Activations . | . . . . . . . . Shielding Activations . | . . . . . . . . Robots Disrupted . | . . . . . . . . Combat Hostiles . | . . . . . . . . Robots Corrupted 42 | . . 1 22 6 13 . . Combat Hostiles 29 | . . 1 13 4 11 . . Parts Fried 52 | . . . 30 1 21 . . Impact Corruptions 102 | . . 6 44 14 38 . . Robots Melted . | . . . . . . . . Combat Hostiles . | . . . . . . . . Parts Melted . | . . . . . . . . Heat Transferred 74 | . . . . 74 . . . Parts Sabotaged . | . . . . . . . . Parts Stolen . | . . . . . . . . Parts Stripped . | . . . . . . . . Power Chain Reactions . | . . . . . . . . Alert | -11 -10 -9 -8 -7 -6 -5 -5 ------- Run | Yrd Mat Mat Mat Fac Fac Fac Upp Maximum Alert Level 3 | . . . 3 1 1 1 . Low Security (%) 51 | 100 100 100 24 23 82 24 . Level 1 41 | . . . 49 76 17 75 . Level 2 5 | . . . 23 . . . . Level 3 . | . . . 2 . . . . Level 4 . | . . . . . . . . Level 5 . | . . . . . . . . High Security . | . . . . . . . . Max Security . | . . . . . . . . Peak Influence 727 | 5 58 67 727 324 279 341 . Initial 324 | . . 15 11 324 50 136 . Average 196 | . 14 27 321 232 130 252 . Influence Increases 2896 | 10 88 97 1124 451 731 375 20 Destroy 0b10 Robot/C 1440 | . 60 60 560 280 460 . 20 Destroy 0b10 Robot/NC 145 | 10 5 5 70 20 35 . . Destroy Leader 372 | . 22 32 124 104 90 . . Successful Hack 60 | . . . 4 . 56 . . Destroy Structure 39 | . 1 . 21 17 . . . Partial Spotted 75 | . . . 15 . 30 30 . Lose Combat Pursuer 765 | . . . 330 30 60 345 . Influence Decreases 2729 | 10 50 108 436 1063 555 323 184 Entered New Map 750 | . . 23 16 391 53 143 124 Time Decay 1469 | 10 50 85 360 422 452 60 30 Lost Part 360 | . . . 60 100 50 120 30 Purge Threat 150 | . . . . 150 . . . Squads Dispatched 25 | . 2 . 6 7 8 2 . Investigation 6 | . 1 . 1 1 1 2 . Extermination 6 | . . . . 3 3 . . Reinforcement 12 | . 1 . 4 3 4 . . Assault . | . . . . . . . . Garrison 1 | . . . 1 . . . . Intercept . | . . . . . . . . Searches Triggered . | . . . . . . . . Construction Impeded . | . . . . . . . . Haulers Reinforced 2 | . . . . 1 1 . . Active Scanning Responses . | . . . . . . . . Cargo Convoy Interrupts . | . . . . . . . . Stealth | -11 -10 -9 -8 -7 -6 -5 -5 --------- Run | Yrd Mat Mat Mat Fac Fac Fac Upp Distress Signals 5 | . . . 3 1 1 . . Communications Jammed . | . . . . . . . . Distress Signals . | . . . . . . . . Times Spotted 163 | . 8 3 56 18 45 23 10 Peak Tracking Total 16 | . 4 3 9 5 13 16 10 Tactical Retreats 17 | . . . 8 1 3 5 . Traps | -11 -10 -9 -8 -7 -6 -5 -5 ------- Run | Yrd Mat Mat Mat Fac Fac Fac Upp Traps Triggered 7 | . 1 . 1 1 3 1 . Indirectly . | . . . . . . . . Trap Hack Attempts . | . . . . . . . . Triggered . | . . . . . . . . Disarmed . | . . . . . . . . Reprogrammed . | . . . . . . . . Reused . | . . . . . . . . Traps Extracted . | . . . . . . . . Installed . | . . . . . . . . Triggered . | . . . . . . . . Machines | -11 -10 -9 -8 -7 -6 -5 -5 ---------- Run | Yrd Mat Mat Mat Fac Fac Fac Upp Machines Disabled . | . . . . . . . . Max in Single Turn . | . . . . . . . . Garrison Access 2 | . . . . . 2 . . Machines Repaired . | . . . . . . . . Machines Dismantled . | . . . . . . . . Machines Sabotaged . | . . . . . . . . Overloaded Fab Kills . | . . . . . . . . Hacking | -11 -10 -9 -8 -7 -6 -5 -5 --------- Run | Yrd Mat Mat Mat Fac Fac Fac Upp Machines Accessed 27 | . 2 2 6 5 10 2 . Terminals 17 | . 2 2 4 2 6 1 . Fabricators 3 | . . . . 2 1 . . Repair Stations 1 | . . . 1 . . . . Recycling Units . | . . . . . . . . Scanalyzers 3 | . . . 1 1 1 . . Garrison Access 3 | . . . . . 2 1 . Total Hacks 98 | . 3 7 28 26 30 4 . Successful 58 | . 1 4 19 15 19 . . Failed 38 | . 2 3 9 10 10 4 . Catastrophic 4 | . 1 . . 2 . 1 . Database Lockouts 2 | . . . . 1 1 . . Manual . | . . . . . . . . Terminals 52 | . 3 7 16 6 18 2 . Fabricators 7 | . . . . 4 3 . . Repair Stations 3 | . . . 3 . . . . Recycling Units . | . . . . . . . . Scanalyzers 31 | . . . 9 16 6 . . Garrison Access 5 | . . . . . 3 2 . Terminal Hacks 24 | . 1 4 7 1 11 . . Record 4 | . 1 . . . 3 . . Prototype ID Bank 3 | . . 1 1 . 1 . . Level Access Points 1 | . . . . . 1 . . Branch Access Points 2 | . . . 1 . 1 . . Terminal Index 1 | . . . 1 . . . . Alert Level 3 | . . 1 . . 2 . . Unreport Threat 1 | . . . . 1 . . . Locate Traps 3 | . . . 1 . 2 . . Dispatch Records 1 | . . . 1 . . . . Security Status 1 | . . . . . 1 . . Investigation Status 1 | . . . 1 . . . . Hauler Manifests 1 | . . 1 . . . . . Registered Components 1 | . . 1 . . . . . Zone Layout 1 | . . . 1 . . . . Fabricator Hacks 5 | . . . . 3 2 . . Load Schematic 3 | . . . . 2 1 . . Build 2 | . . . . 1 1 . . Repair Station Hacks 3 | . . . 3 . . . . Scan Component 2 | . . . 2 . . . . Repair 1 | . . . 1 . . . . Recycling Unit Hacks . | . . . . . . . . Scanalyzer 24 | . . . 9 11 4 . . Insert Component 9 | . . . 2 6 1 . . Analyze 6 | . . . 1 4 1 . . Retrieve Study 9 | . . . 6 1 2 . . Garrison Access Hacks 2 | . . . . . 2 . . Seal Access 2 | . . . . . 2 . . Unauthorized Hacks . | . . . . . . . . Terminals . | . . . . . . . . Fabricators . | . . . . . . . . Repair Stations . | . . . . . . . . Recycling Units . | . . . . . . . . Scanalyzers . | . . . . . . . . Garrison Access . | . . . . . . . . Data Cores Recovered . | . . . . . . . . Used . | . . . . . . . . Hacking Detections 23 | . 2 2 5 4 8 2 . Full Trace Events 4 | . . . 1 1 1 1 . Feedback Events 1 | . . . . . . 1 . Corruption 1 | . . . . . . 1 . Feedback Blocked . | . . . . . . . . Robot Schematics Acquired . | . . . . . . . . Robots Built . | . . . . . . . . Authchips . | . . . . . . . . Time . | . . . . . . . . Total Robot Build Rating . | . . . . . . . . Part Schematics Acquired 6 | . . . 1 4 1 . . Parts Built 4 | . . . . 2 2 . . Authchips . | . . . . . . . . Time 131 | . . . . 84 47 . . Total Part Build Rating 18 | . . . . 8 10 . . Part Studies Acquired 8 | . . . 5 1 2 . . Parts Repaired 1 | . . . 1 . . . . Time 32 | . . . 32 . . . . Parts Recycled . | . . . . . . . . Recycled Matter . | . . . . . . . . Retrieved Matter . | . . . . . . . . Retrieved Components . | . . . . . . . . Parts Scanalyzed 8 | . . . 1 6 1 . . Part Schematics Acquired 6 | . . . 1 4 1 . . Parts Damaged 3 | . . . 1 2 . . . Bothacking | -11 -10 -9 -8 -7 -6 -5 -5 ------------ Run | Yrd Mat Mat Mat Fac Fac Fac Upp Used RIF Installer . | . . . . . . . . Robots Hacked . | . . . . . . . . Non-combat . | . . . . . . . . Combat . | . . . . . . . . Robot Hacks Applied . | . . . . . . . . Relay Couplers Released . | . . . . . . . . Fabnet Peak Effective % . | . . . . . . . . Robots Rewired . | . . . . . . . . Allies Hacked . | . . . . . . . . Hacks Repelled . | . . . . . . . . Allies | -11 -10 -9 -8 -7 -6 -5 -5 -------- Run | Yrd Mat Mat Mat Fac Fac Fac Upp Total Allies . | . . . . . . . . Largest Group . | . . . . . . . . Highest-Rated Group . | . . . . . . . . Highest-Rated Ally . | . . . . . . . . Total Orders . | . . . . . . . . Ally Attacks . | . . . . . . . . Total Damage . | . . . . . . . . Kills . | . . . . . . . . Allies Corrupted . | . . . . . . . . Allies Melted . | . . . . . . . . Intel | -11 -10 -9 -8 -7 -6 -5 -5 ------- Run | Yrd Mat Mat Mat Fac Fac Fac Upp Active Infowar (turns) 223 | . . . . . 138 85 . Sensors 223 | . . . . . 138 85 . Robot Analysis Total . | . . . . . . . . Derelict Logs Recovered . | . . . . . . . . Drone Launches . | . . . . . . . . Drone Recoveries . | . . . . . . . . Exploration | -11 -10 -9 -8 -7 -6 -5 -5 ------------- Run | Yrd Mat Mat Mat Fac Fac Fac Upp Turns Passed 3798 | 96 193 201 946 1027 1137 120 78 Spaces Moved 2863 | 74 132 138 550 702 923 242 102 Core 188 | 13 . . . 5 1 67 102 Treads . | . . . . . . . . Legs . | . . . . . . . . Wheels 2258 | 61 132 138 550 697 680 . . Hover . | . . . . . . . . Flight 417 | . . . . . 242 175 . Fastest Speed 25 | 50 80 90 90 100 25 25 50 Average Speed 87 | 74 89 90 97 110 80 34 52 Slowest Speed 750 | 80 90 90 105 750 150 107 150 Overloaded Moves . | . . . . . . . . Propulsion Burnouts . | . . . . . . . . Robots Hopped 4 | . . . . . 3 1 . Potential Cave-ins . | . . . . . . . . Cave-ins Triggered 1 | . . . . 1 . . . Exploration Rate (%) 23 | 5 28 18 61 17 31 9 21 Regions Visited 7 Branch Regions 1 Pre-discovered Areas . | . . . . . . . . Known Exits Taken 1 | . . . . . 1 . . Unknown Exits Taken 6 | 1 1 1 1 1 . 1 . Scrap Searched . | . . . . . . . . Spaces Dug . | . . . . . . . . Terrain Destroyed 48 | . . . 30 17 . . 1 Melee . | . . . . . . . . Projectile 1 | . . . . . . . 1 AOE 47 | . . . 30 17 . . . Terrain Rammed . | . . . . . . . . Walls Destroyed . | . . . . . . . . Machines Disabled . | . . . . . . . . Actions | -11 -10 -9 -8 -7 -6 -5 -5 --------- Run | Yrd Mat Mat Mat Fac Fac Fac Upp Total 3760 | 103 172 199 803 880 1207 276 120 Wait 409 | . 18 28 116 70 167 . 10 Move 2848 | 73 131 137 549 701 916 239 102 Hop 4 | . . . . . 3 1 . Pick Up 74 | 8 2 8 16 19 20 1 . Fast Attach 17 | 1 1 3 3 3 3 2 1 Attach 51 | 6 . 1 9 16 14 3 2 Detach 11 | 1 . 1 1 5 3 . . Swap 21 | . 2 1 3 9 5 1 . Drop 48 | . . 9 5 11 19 4 . Fire 65 | 14 18 4 11 13 . . 5 Melee 187 | . . 7 90 33 57 . . Ram 25 | . . . . . . 25 . Kick . | . . . . . . . . Crush . | . . . . . . . . Escape Stasis . | . . . . . . . . Rewire . | . . . . . . . . Trap . | . . . . . . . . Miscellaneous . | . . . . . . . . Route ------- -11/Scrapyard -10/Materials -9/Materials -8/Materials -7/Factory -6/Factory (discovered 6 exits: *Fac x4 / Low x2) -5/Factory -5/Upper Caves History --------- Turn | Location | Event 20 | -11/Scrapyard | Discovered new exit (range 16) 97 | -11/Scrapyard | Entered Materials 279 | -10/Materials | Discovered new exit (range 4) 290 | -10/Materials | Entered another Materials area 290 | -9/Materials | Evolved 2 slots: Utility x1, Weapon x1 355 | -9/Materials | Build established: Mutant 437 | -9/Materials | Discovered new exit (range 15) 491 | -9/Materials | Entered another Materials area 491 | -8/Materials | Evolved 2 slots: Propulsion x2 742 | -8/Materials | Lost 4 parts (1p1n1u1w) 812 | -8/Materials | Destroyed 12 combat bots 841 | -8/Materials | Lost 4 parts (3n1w) 1136 | -8/Materials | Repaired Med. Armor Plating 1283 | -8/Materials | Garrison activated, responded to threat 1420 | -8/Materials | Discovered new exit (range 15) 1437 | -8/Materials | Entered Factory 1437 | -7/Factory | Evolved 2 slots: Utility x1, Weapon x1 1852 | -7/Factory | Build established: Hacker-Mutant 1959 | -7/Factory | Fabricated Arm. Huge Wheel (x2) 2112 | -7/Factory | Crushed by falling debris 2143 | -7/Factory | Lost 4 parts (1p2u1w) 2328 | -7/Factory | Central database locked down 2354 | -7/Factory | System corruption reached 10% 2383 | -7/Factory | Discovered new exit (range 16) 2414 | -7/Factory | Build established: Gladiator 2464 | -7/Factory | Entered another Factory area 2464 | -6/Factory | Evolved 2 slots: Power x1, Propulsion x1 2735 | -6/Factory | Central database locked down 2848 | -6/Factory | Found Prototype Processor 2859 | -6/Factory | Found Prototype Processor 3194 | -6/Factory | Identified exit to Lower Caves 3448 | -6/Factory | Identified Exp. Targeting Computer (x2) 3529 | -6/Factory | Fabricated Nuclear Pulse Thruster (x2) 3558 | -6/Factory | Identified exit to Factory 3559 | -6/Factory | Spotted B-75 Beast 3601 | -6/Factory | Entered another Factory area 3601 | -5/Factory | Evolved 2 slots: Utility x2 3701 | -5/Factory | Discovered new exit (range 15) 3704 | -5/Factory | Core integrity fell below 50% 3719 | -5/Factory | Lost 13 parts (1p6n5u1w) 3721 | -5/Factory | Entered Upper Caves 3771 | -5/Upper Caves | Attracted the attention of an 0b10 outpost 3771 | -5/Upper Caves | Core integrity fell below 20% 3799 | -5/Upper Caves | Destroyed by S-27 Virus with Autogun Last Messages --------------- 03731_ M-22 Extractor extracts Fire Trap. 03731_ M-22 Extractor reprogrammed Fire Trap. 03733_ M-22 Extractor extracts Fire Trap. 03735_ M-22 Extractor reprogrammed Dirty Bomb Trap. 03737_ M-22 Extractor extracts Dirty Bomb Trap. 03761_ System Restoration Module purges 1% system corruption (5%). 03770_ System Restoration Module destroyed. 03771_ Y-72 Warden: "DETECTED UNIDENTIFIED DERELICT." 03774_ Y9WZXCU11KA JOSAS